[Event "*** SCC Grand Prix: Titled Tuesday Blitz"]
[Site "Chess.com"]
[Date "2020.07.14"]
[Round "5"]
[White "2nd_life"]
[Black "dpopadic"]
[Result "1-0"]
[WhiteElo "2475"]
[BlackElo "2325"]
[TimeControl "180+1"]
[EndTime "10:56:28 PDT"]
[Termination "2nd_life won by checkmate"]

1. e4 {[%clk 0:03:00.9]} 1... c5 {[%clk 0:02:59.3]} 2. Nf3 {[%clk 0:03:00.7]}
2... Nc6 {[%clk 0:02:59.4]} 3. Bb5 {[%clk 0:03:00.3]} 3... d6 {[%clk 0:02:59.4]}
4. O-O {[%clk 0:02:59.7]} 4... Bd7 {[%clk 0:02:59.5]} 5. Re1 {[%clk 0:02:59.1]}
5... Nf6 {[%clk 0:02:59.6]} 6. h3 {[%clk 0:02:57.2]} 6... g6 {[%clk 0:02:58.9]}
7. c3 {[%clk 0:02:55.6]} 7... Bg7 {[%clk 0:02:58.2]} 8. d4 {[%clk 0:02:55.4]}
8... O-O {[%clk 0:02:56.3]} 9. d5 {[%clk 0:02:53.8]} 9... Nb8 {[%clk 0:02:55.4]}
10. Bf1 {[%clk 0:02:43.9]} 10... Bc8 {[%clk 0:02:55.2]} 11. c4 {[%clk
0:02:40.3]} 11... Nbd7 {[%clk 0:02:55]} 12. Nc3 {[%clk 0:02:40.1]} 12... a6
{[%clk 0:02:54.8]} 13. a4 {[%clk 0:02:36.1]} 13... b6 {[%clk 0:02:51.3]} 14. Bf4
{[%clk 0:02:29.6]} 14... Ne8 {[%clk 0:02:49.9]} 15. Qd2 {[%clk 0:02:26.6]} 15...
Ne5 {[%clk 0:02:42.3]} 16. Nxe5 {[%clk 0:02:18.2]} 16... dxe5 {[%clk 0:02:42.3]}
17. Bh6 {[%clk 0:02:18.3]} 17... Nd6 {[%clk 0:02:42]} 18. Bxg7 {[%clk
0:02:17.8]} 18... Kxg7 {[%clk 0:02:41.7]} 19. f4 {[%clk 0:02:17.9]} 19... exf4
{[%clk 0:02:34.4]} 20. Qxf4 {[%clk 0:02:16.5]} 20... Ra7 {[%clk 0:02:20.3]} 21.
Bd3 {[%clk 0:02:04.3]} 21... Qc7 {[%clk 0:02:10.3]} 22. e5 {[%clk 0:02:00.8]}
22... Ne8 {[%clk 0:02:05.7]} 23. Re3 {[%clk 0:01:47.8]} 23... Kg8 {[%clk
0:01:57.7]} 24. Rf1 {[%clk 0:01:44.2]} 24... Ng7 {[%clk 0:01:55.2]} 25. g4
{[%clk 0:01:40.6]} 25... Bb7 {[%clk 0:01:43.2]} 26. b3 {[%clk 0:01:25.6]} 26...
e6 {[%clk 0:01:42.8]} 27. d6 {[%clk 0:01:22.1]} 27... Qd8 {[%clk 0:01:40.3]} 28.
Be4 {[%clk 0:01:21]} 28... Qh4 {[%clk 0:01:27.3]} 29. Bxb7 {[%clk 0:01:16.9]}
29... Rxb7 {[%clk 0:01:27.1]} 30. Ne4 {[%clk 0:01:16.8]} 30... Ne8 {[%clk
0:01:25.9]} 31. Kg2 {[%clk 0:01:09.9]} 31... a5 {[%clk 0:01:17.1]} 32. Ref3
{[%clk 0:01:05.9]} 32... Rd7 {[%clk 0:01:14.7]} 33. Qe3 {[%clk 0:00:50.7]} 33...
Kg7 {[%clk 0:01:01.2]} 34. g5 {[%clk 0:00:41.4]} 34... h6 {[%clk 0:00:46]} 35.
Nf6 {[%clk 0:00:30.2]} 35... Nxf6 {[%clk 0:00:44.4]} 36. gxf6+ {[%clk 0:00:30]}
36... Kh7 {[%clk 0:00:42.5]} 37. Rf4 {[%clk 0:00:28.6]} 37... Qh5 {[%clk
0:00:34.8]} 38. Kh2 {[%clk 0:00:24.7]} 38... Rh8 {[%clk 0:00:34.2]} 39. Rg4
{[%clk 0:00:20.3]} 39... Rg8 {[%clk 0:00:31.8]} 40. Qg3 {[%clk 0:00:17]} 40...
Kh8 {[%clk 0:00:24.4]} 41. Rh4 {[%clk 0:00:15.4]} 41... Qe2+ {[%clk 0:00:18.4]}
42. Rf2 {[%clk 0:00:15.2]} 42... Qxf2+ {[%clk 0:00:13.5]} 43. Qxf2 {[%clk
0:00:14.9]} 43... Kh7 {[%clk 0:00:14.1]} 44. Rxh6+ {[%clk 0:00:14.2]} 44... Kxh6
{[%clk 0:00:13.8]} 45. Qh4# {[%clk 0:00:14.3]} 1-0

[Event "*** SCC Grand Prix: Titled Tuesday Blitz"]
[Site "Chess.com"]
[Date "2020.07.14"]
[Round "5"]
[White "sotochess"]
[Black "AttackSparrow"]
[Result "1-0"]
[WhiteElo "2436"]
[BlackElo "2304"]
[TimeControl "180+1"]
[EndTime "10:56:31 PDT"]
[Termination "sotochess won on time"]

1. e4 {[%clk 0:03:00]} 1... c5 {[%clk 0:02:50]} 2. Nf3 {[%clk 0:02:57.8]} 2...
e6 {[%clk 0:02:48.6]} 3. d4 {[%clk 0:02:57.4]} 3... cxd4 {[%clk 0:02:49.5]} 4.
Nxd4 {[%clk 0:02:57.9]} 4... Nc6 {[%clk 0:02:50]} 5. Nb5 {[%clk 0:02:56.5]} 5...
d6 {[%clk 0:02:49.5]} 6. Bf4 {[%clk 0:02:55.8]} 6... e5 {[%clk 0:02:48.5]} 7.
Be3 {[%clk 0:02:55.8]} 7... a6 {[%clk 0:02:47.1]} 8. N5c3 {[%clk 0:02:55.1]}
8... Be6 {[%clk 0:02:46.6]} 9. Nd5 {[%clk 0:02:48.8]} 9... Nf6 {[%clk
0:02:39.8]} 10. Bb6 {[%clk 0:02:45.9]} 10... Qc8 {[%clk 0:02:34.4]} 11. Nc7+
{[%clk 0:02:38]} 11... Kd7 {[%clk 0:02:34.8]} 12. Nxa8 {[%clk 0:02:36.6]} 12...
Qxa8 {[%clk 0:02:35.7]} 13. Nc3 {[%clk 0:02:34.2]} 13... Be7 {[%clk 0:02:35.8]}
14. Be2 {[%clk 0:02:31.5]} 14... Rc8 {[%clk 0:02:23.4]} 15. O-O {[%clk
0:02:29.1]} 15... Ke8 {[%clk 0:02:23.4]} 16. Kh1 {[%clk 0:02:06.9]} 16... Kf8
{[%clk 0:02:22.7]} 17. f4 {[%clk 0:02:06.1]} 17... exf4 {[%clk 0:02:23.6]} 18.
Rxf4 {[%clk 0:02:05.7]} 18... Ne5 {[%clk 0:02:24.3]} 19. Bd4 {[%clk 0:02:01.8]}
19... Kg8 {[%clk 0:02:23.5]} 20. a4 {[%clk 0:02:00.9]} 20... Qb8 {[%clk
0:02:19.5]} 21. Rf1 {[%clk 0:01:56.6]} 21... Qc7 {[%clk 0:02:06.5]} 22. Bd3
{[%clk 0:01:51.6]} 22... h6 {[%clk 0:02:06.5]} 23. Qd2 {[%clk 0:01:49.3]} 23...
Neg4 {[%clk 0:01:48.4]} 24. h3 {[%clk 0:01:41.6]} 24... Ne5 {[%clk 0:01:46]} 25.
Rae1 {[%clk 0:01:31.5]} 25... Nh5 {[%clk 0:01:22.7]} 26. Qf2 {[%clk 0:01:14.6]}
26... Qd8 {[%clk 0:00:39.5]} 27. Bb6 {[%clk 0:01:10.9]} 27... Qe8 {[%clk
0:00:20.1]} 28. Nd5 {[%clk 0:00:58.6]} 28... Bg5 {[%clk 0:00:14.1]} 29. b3
{[%clk 0:00:46.5]} 29... Kh8 {[%clk 0:00:05]} 30. Be3 {[%clk 0:00:45.4]} 30...
Bd8 {[%clk 0:00:04.1]} 31. Nf4 {[%clk 0:00:41.3]} 31... Nf6 {[%clk 0:00:01.6]}
32. Nxe6 {[%clk 0:00:40.5]} 32... Qxe6 {[%clk 0:00:02.5]} 33. Bd4 {[%clk
0:00:40.1]} 33... Bc7 {[%clk 0:00:02.5]} 34. Qf5 {[%clk 0:00:38.8]} 34... Qe8
{[%clk 0:00:01.8]} 35. Be3 {[%clk 0:00:35.5]} 35... Rd8 {[%clk 0:00:02.1]} 36.
Bxh6 {[%clk 0:00:35.2]} 36... Ng6 {[%clk 0:00:01.4]} 37. Bxg7+ {[%clk
0:00:34.2]} 37... Kxg7 {[%clk 0:00:02.3]} 38. Qxf6+ {[%clk 0:00:34.4]} 38... Kg8
{[%clk 0:00:03.2]} 39. e5 {[%clk 0:00:33.9]} 39... dxe5 {[%clk 0:00:03.2]} 40.
Bc4 {[%clk 0:00:30.4]} 40... Rd6 {[%clk 0:00:02.5]} 41. Bxf7+ {[%clk 0:00:28.8]}
41... Kf8 {[%clk 0:00:02]} 42. Bxe8+ {[%clk 0:00:23.4]} 42... Rxf6 {[%clk
0:00:01.9]} 43. Rxf6+ {[%clk 0:00:23.3]} 43... Kxe8 {[%clk 0:00:02.8]} 44. Rxg6
{[%clk 0:00:23.7]} 1-0

[Event "*** SCC Grand Prix: Titled Tuesday Blitz"]
[Site "Chess.com"]
[Date "2020.07.14"]
[Round "5"]
[White "rpragchess"]
[Black "Herracek"]
[Result "1-0"]
[WhiteElo "2804"]
[BlackElo "2569"]
[TimeControl "180+1"]
[EndTime "10:56:32 PDT"]
[Termination "rpragchess won by resignation"]

1. d4 {[%clk 0:03:00.9]} 1... Nf6 {[%clk 0:02:59.7]} 2. Bf4 {[%clk 0:03:00.8]}
2... c5 {[%clk 0:02:59.3]} 3. e3 {[%clk 0:03:00.6]} 3... Qb6 {[%clk 0:02:59.4]}
4. Nc3 {[%clk 0:02:59.7]} 4... cxd4 {[%clk 0:02:59.7]} 5. exd4 {[%clk
0:02:56.8]} 5... Nc6 {[%clk 0:02:59.9]} 6. Qd2 {[%clk 0:01:36]} 6... Qxd4 {[%clk
0:02:16.1]} 7. Qxd4 {[%clk 0:01:32]} 7... Nxd4 {[%clk 0:02:17]} 8. O-O-O {[%clk
0:01:32.5]} 8... Ne6 {[%clk 0:02:11.2]} 9. Bg3 {[%clk 0:01:31.2]} 9... a6 {[%clk
0:02:10]} 10. Nf3 {[%clk 0:01:29.6]} 10... b5 {[%clk 0:02:06.9]} 11. a4 {[%clk
0:01:19.4]} 11... b4 {[%clk 0:02:04.4]} 12. Na2 {[%clk 0:01:19.2]} 12... a5
{[%clk 0:01:59.2]} 13. Bb5 {[%clk 0:01:13.4]} 13... Ba6 {[%clk 0:01:56.4]} 14.
Ne5 {[%clk 0:00:55.2]} 14... Nc5 {[%clk 0:01:31.8]} 15. Bh4 {[%clk 0:00:47.1]}
15... Bxb5 {[%clk 0:01:28.5]} 16. axb5 {[%clk 0:00:48]} 16... Rb8 {[%clk
0:01:24]} 17. c4 {[%clk 0:00:44]} 17... bxc3 {[%clk 0:01:18.3]} 18. Nxc3 {[%clk
0:00:43.9]} 18... Nce4 {[%clk 0:01:02.2]} 19. Bxf6 {[%clk 0:00:28.9]} 19... Nxc3
{[%clk 0:00:58.5]} 20. Nxd7 {[%clk 0:00:16.5]} 20... Nxd1 {[%clk 0:00:58.1]} 21.
Nxb8 {[%clk 0:00:16.1]} 21... Nxf2 {[%clk 0:00:58.4]} 22. Rf1 {[%clk 0:00:16.6]}
22... gxf6 {[%clk 0:00:57.1]} 23. Rxf2 {[%clk 0:00:16.6]} 23... Bh6+ {[%clk
0:00:57.5]} 24. Kc2 {[%clk 0:00:16.1]} 24... e6 {[%clk 0:00:50.8]} 25. Rf3
{[%clk 0:00:15.7]} 25... f5 {[%clk 0:00:45.9]} 26. Rd3 {[%clk 0:00:14.3]} 26...
Ke7 {[%clk 0:00:45]} 27. Nc6+ {[%clk 0:00:14.5]} 27... Kf6 {[%clk 0:00:45.4]}
28. Kb3 {[%clk 0:00:14.3]} 28... Bf4 {[%clk 0:00:45.3]} 29. g3 {[%clk 0:00:14]}
29... Bc7 {[%clk 0:00:40.9]} 30. Kc4 {[%clk 0:00:14.1]} 30... Rc8 {[%clk
0:00:37.3]} 31. Kc5 {[%clk 0:00:14]} 31... f4 {[%clk 0:00:36.2]} 32. b6 {[%clk
0:00:12.7]} 32... fxg3 {[%clk 0:00:34.8]} 33. hxg3 {[%clk 0:00:11.8]} 33... Be5
{[%clk 0:00:32.2]} 34. b7 {[%clk 0:00:10.7]} 34... Rc7 {[%clk 0:00:22.2]} 35.
Kb6 {[%clk 0:00:11.1]} 35... Rxc6+ {[%clk 0:00:17.8]} 36. Kxc6 {[%clk
0:00:11.4]} 36... h5 {[%clk 0:00:17.9]} 37. Rd6 {[%clk 0:00:10.2]} 37... Bxg3
{[%clk 0:00:16.3]} 38. b8=Q {[%clk 0:00:10.2]} 38... h4 {[%clk 0:00:17.2]} 39.
Qd8+ {[%clk 0:00:10.3]} 39... Kg6 {[%clk 0:00:17.5]} 40. Rd4 {[%clk 0:00:09.2]}
40... f5 {[%clk 0:00:16.9]} 41. Rxh4 {[%clk 0:00:09]} 41... Bxh4 {[%clk
0:00:16.5]} 42. Qxh4 {[%clk 0:00:09.9]} 42... e5 {[%clk 0:00:16.6]} 43. Kd5
{[%clk 0:00:10.2]} 43... e4 {[%clk 0:00:17.1]} 44. Ke5 {[%clk 0:00:11.1]} 44...
e3 {[%clk 0:00:16.9]} 45. Qf6+ {[%clk 0:00:11.7]} 1-0

[Event "*** SCC Grand Prix: Titled Tuesday Blitz"]
[Site "Chess.com"]
[Date "2020.07.14"]
[Round "5"]
[White "cottage_cheese"]
[Black "QueenOfTactics90"]
[Result "1-0"]
[WhiteElo "2162"]
[BlackElo "1996"]
[TimeControl "180+1"]
[EndTime "10:56:32 PDT"]
[Termination "cottage_cheese won by checkmate"]

1. e4 {[%clk 0:03:00.9]} 1... c5 {[%clk 0:02:59.3]} 2. Nf3 {[%clk 0:02:59.3]}
2... Nc6 {[%clk 0:02:59.5]} 3. Bb5 {[%clk 0:02:57.9]} 3... g6 {[%clk 0:02:58.4]}
4. Bxc6 {[%clk 0:02:56.4]} 4... dxc6 {[%clk 0:02:57.3]} 5. d3 {[%clk 0:02:56.1]}
5... Bg7 {[%clk 0:02:57.3]} 6. h3 {[%clk 0:02:55.3]} 6... e5 {[%clk 0:02:55.6]}
7. Be3 {[%clk 0:02:50.2]} 7... Qd6 {[%clk 0:02:53.1]} 8. Nbd2 {[%clk 0:02:46.4]}
8... b6 {[%clk 0:02:46.4]} 9. Nc4 {[%clk 0:02:45]} 9... Qc7 {[%clk 0:02:45.6]}
10. a4 {[%clk 0:02:43.9]} 10... Bb7 {[%clk 0:02:34.4]} 11. a5 {[%clk 0:02:33]}
11... Ne7 {[%clk 0:02:18.9]} 12. Qd2 {[%clk 0:02:21.9]} 12... O-O {[%clk
0:02:17.5]} 13. O-O {[%clk 0:02:21.2]} 13... Rfd8 {[%clk 0:02:12.9]} 14. Qc3
{[%clk 0:02:18.3]} 14... f6 {[%clk 0:02:09.9]} 15. Qb3 {[%clk 0:02:17.2]} 15...
Nc8 {[%clk 0:02:04.7]} 16. a6 {[%clk 0:02:05]} 16... Kh8 {[%clk 0:01:56.5]} 17.
axb7 {[%clk 0:02:04.6]} 17... Qxb7 {[%clk 0:01:57.1]} 18. Nh2 {[%clk 0:01:53.1]}
18... h5 {[%clk 0:01:54.1]} 19. f4 {[%clk 0:01:52.5]} 19... exf4 {[%clk
0:01:46.8]} 20. Bxf4 {[%clk 0:01:51.7]} 20... b5 {[%clk 0:01:47.1]} 21. e5
{[%clk 0:01:33.2]} 21... Qd7 {[%clk 0:01:37.7]} 22. Nd6 {[%clk 0:01:29.1]} 22...
Nxd6 {[%clk 0:01:30.6]} 23. exd6 {[%clk 0:01:28.1]} 23... g5 {[%clk 0:01:27.5]}
24. Bg3 {[%clk 0:01:18.6]} 24... h4 {[%clk 0:01:26.7]} 25. Bf2 {[%clk
0:01:17.6]} 25... Qxd6 {[%clk 0:01:26.9]} 26. Qc3 {[%clk 0:01:13.2]} 26... c4
{[%clk 0:01:20.2]} 27. dxc4 {[%clk 0:01:11.9]} 27... f5 {[%clk 0:01:20.5]} 28.
Qb3 {[%clk 0:00:51.5]} 28... bxc4 {[%clk 0:01:16.9]} 29. Qxc4 {[%clk 0:00:52.4]}
29... Rab8 {[%clk 0:01:13.6]} 30. Rae1 {[%clk 0:00:49.4]} 30... Rb4 {[%clk
0:01:11.3]} 31. Qf7 {[%clk 0:00:46.6]} 31... Rxb2 {[%clk 0:01:03]} 32. Re6
{[%clk 0:00:42.5]} 32... Qf8 {[%clk 0:00:49.9]} 33. Qh5+ {[%clk 0:00:41]} 33...
Kg8 {[%clk 0:00:49.6]} 34. Rfe1 {[%clk 0:00:40.2]} 34... Rbb8 {[%clk 0:00:28.4]}
35. Qxg5 {[%clk 0:00:40.3]} 35... Qf7 {[%clk 0:00:25.9]} 36. Re7 {[%clk
0:00:37.9]} 36... Qf6 {[%clk 0:00:25.4]} 37. Qh5 {[%clk 0:00:29.9]} 37... Rb1
{[%clk 0:00:20.5]} 38. Bxh4 {[%clk 0:00:27.1]} 38... Rxe1+ {[%clk 0:00:19.4]}
39. Rxe1 {[%clk 0:00:24.8]} 39... Qd4+ {[%clk 0:00:18.7]} 40. Kh1 {[%clk
0:00:23.4]} 40... Qf4 {[%clk 0:00:16.7]} 41. Bxd8 {[%clk 0:00:22.1]} 41... Be5
{[%clk 0:00:15.7]} 42. Qe8+ {[%clk 0:00:21.1]} 42... Kh7 {[%clk 0:00:15.1]} 43.
Qxe5 {[%clk 0:00:20.4]} 43... Qf2 {[%clk 0:00:14.6]} 44. Qe7+ {[%clk 0:00:19.2]}
44... Kg6 {[%clk 0:00:14.5]} 45. Re6+ {[%clk 0:00:18.3]} 45... Kh5 {[%clk
0:00:14.3]} 46. Qh7# {[%clk 0:00:17.2]} 1-0

[Event "*** SCC Grand Prix: Titled Tuesday Blitz"]
[Site "Chess.com"]
[Date "2020.07.14"]
[Round "5"]
[White "CrushingKings"]
[Black "platy3"]
[Result "0-1"]
[WhiteElo "2555"]
[BlackElo "2769"]
[TimeControl "180+1"]
[EndTime "10:56:33 PDT"]
[Termination "platy3 won by checkmate"]

1. e4 {[%clk 0:03:00.9]} 1... c5 {[%clk 0:02:59.9]} 2. d4 {[%clk 0:02:58.3]}
2... cxd4 {[%clk 0:02:59.7]} 3. c3 {[%clk 0:02:59.2]} 3... Nf6 {[%clk 0:02:59]}
4. e5 {[%clk 0:02:59.2]} 4... Nd5 {[%clk 0:02:59.6]} 5. Nf3 {[%clk 0:02:59.8]}
5... Nc6 {[%clk 0:03:00.1]} 6. Bc4 {[%clk 0:02:59.9]} 6... e6 {[%clk 0:03:00.2]}
7. cxd4 {[%clk 0:02:59.5]} 7... d6 {[%clk 0:03:00.7]} 8. O-O {[%clk 0:02:59.5]}
8... Be7 {[%clk 0:03:01.3]} 9. a3 {[%clk 0:02:58.7]} 9... O-O {[%clk 0:03:00.6]}
10. Qe2 {[%clk 0:02:57.7]} 10... b6 {[%clk 0:03:00.7]} 11. Bd2 {[%clk
0:02:56.2]} 11... Bb7 {[%clk 0:02:58.4]} 12. Nc3 {[%clk 0:02:56.3]} 12... dxe5
{[%clk 0:02:36.4]} 13. dxe5 {[%clk 0:02:53.4]} 13... Na5 {[%clk 0:02:36.1]} 14.
Ba2 {[%clk 0:02:38.4]} 14... Nxc3 {[%clk 0:02:26.4]} 15. Bxc3 {[%clk 0:02:39.3]}
15... Rc8 {[%clk 0:02:26.3]} 16. Rac1 {[%clk 0:02:35.2]} 16... Rc7 {[%clk
0:02:20.9]} 17. Nd4 {[%clk 0:01:27.9]} 17... Qc8 {[%clk 0:01:46.3]} 18. Rfe1
{[%clk 0:01:04.4]} 18... a6 {[%clk 0:01:28.1]} 19. Qg4 {[%clk 0:01:03.1]} 19...
Nc4 {[%clk 0:01:23.6]} 20. h4 {[%clk 0:00:54.8]} 20... Bd5 {[%clk 0:01:20.9]}
21. h5 {[%clk 0:00:35.6]} 21... h6 {[%clk 0:01:19.3]} 22. Bb1 {[%clk 0:00:16]}
22... Nxa3 {[%clk 0:01:12.6]} 23. Be4 {[%clk 0:00:15.7]} 23... Bxe4 {[%clk
0:01:09.1]} 24. Rxe4 {[%clk 0:00:15.6]} 24... Nb5 {[%clk 0:00:59.9]} 25. Nxb5
{[%clk 0:00:12.7]} 25... axb5 {[%clk 0:01:00.8]} 26. Rd1 {[%clk 0:00:12.7]}
26... Rd8 {[%clk 0:00:58.4]} 27. Rde1 {[%clk 0:00:11.3]} 27... Rcd7 {[%clk
0:00:54.6]} 28. Qg3 {[%clk 0:00:06.3]} 28... Rd1 {[%clk 0:00:37.1]} 29. Rxd1
{[%clk 0:00:05.9]} 29... Rxd1+ {[%clk 0:00:38]} 30. Kh2 {[%clk 0:00:06.7]} 30...
b4 {[%clk 0:00:36.3]} 31. Bxb4 {[%clk 0:00:03.9]} 31... Qc1 {[%clk 0:00:36.9]}
32. Kh3 {[%clk 0:00:01.8]} 32... Rh1+ {[%clk 0:00:35.9]} 33. Kg4 {[%clk
0:00:02.2]} 33... Rh4+ {[%clk 0:00:26.3]} 34. Qxh4 {[%clk 0:00:01.7]} 34... Bxh4
{[%clk 0:00:25.2]} 35. Kxh4 {[%clk 0:00:02.6]} 35... Qg5+ {[%clk 0:00:20.5]} 36.
Kh3 {[%clk 0:00:02.2]} 36... Qf5+ {[%clk 0:00:21.4]} 37. Rg4 {[%clk 0:00:01.8]}
37... Qxh5+ {[%clk 0:00:20.5]} 38. Kg3 {[%clk 0:00:01.5]} 38... Qxe5+ {[%clk
0:00:20.9]} 39. Kh3 {[%clk 0:00:02.1]} 39... Qxb2 {[%clk 0:00:20.7]} 40. Bd6
{[%clk 0:00:01.3]} 40... Qxf2 {[%clk 0:00:18.7]} 41. Bg3 {[%clk 0:00:01.6]}
41... Qf5 {[%clk 0:00:17.3]} 42. Kh4 {[%clk 0:00:01.3]} 42... g5+ {[%clk
0:00:16.3]} 43. Kh5 {[%clk 0:00:01.3]} 43... Qg6# {[%clk 0:00:16.2]} 0-1

[Event "*** SCC Grand Prix: Titled Tuesday Blitz"]
[Site "Chess.com"]
[Date "2020.07.14"]
[Round "5"]
[White "Fischerev7"]
[Black "Paladin61"]
[Result "0-1"]
[WhiteElo "2369"]
[BlackElo "2661"]
[TimeControl "180+1"]
[EndTime "10:56:34 PDT"]
[Termination "Paladin61 won by checkmate"]

1. e4 {[%clk 0:03:00.9]} 1... c5 {[%clk 0:02:59.6]} 2. Nf3 {[%clk 0:03:00.5]}
2... d6 {[%clk 0:02:59.3]} 3. d4 {[%clk 0:03:01]} 3... cxd4 {[%clk 0:03:00.2]}
4. Nxd4 {[%clk 0:03:01.9]} 4... Nf6 {[%clk 0:03:00.6]} 5. Nc3 {[%clk 0:03:00.9]}
5... a6 {[%clk 0:03:00.7]} 6. Be3 {[%clk 0:03:00]} 6... e5 {[%clk 0:02:55.9]} 7.
Nb3 {[%clk 0:02:58.1]} 7... Be6 {[%clk 0:02:53.6]} 8. f3 {[%clk 0:02:58]} 8...
h5 {[%clk 0:02:49.5]} 9. Qd2 {[%clk 0:02:57.8]} 9... Nbd7 {[%clk 0:02:47.3]} 10.
O-O-O {[%clk 0:02:58]} 10... Be7 {[%clk 0:02:41.5]} 11. Kb1 {[%clk 0:02:57.9]}
11... Rc8 {[%clk 0:02:36.1]} 12. g3 {[%clk 0:02:56.8]} 12... b5 {[%clk
0:02:11.7]} 13. Nd5 {[%clk 0:02:51.7]} 13... Bxd5 {[%clk 0:02:10.5]} 14. exd5
{[%clk 0:02:52.6]} 14... Nb6 {[%clk 0:02:08]} 15. Bxb6 {[%clk 0:02:47.5]} 15...
Qxb6 {[%clk 0:02:07.7]} 16. Na5 {[%clk 0:02:02.4]} 16... Rc5 {[%clk 0:02:06.9]}
17. Bd3 {[%clk 0:01:30.5]} 17... Rxd5 {[%clk 0:01:51.6]} 18. Nb3 {[%clk
0:01:23.1]} 18... O-O {[%clk 0:01:43.2]} 19. Qe2 {[%clk 0:01:15.8]} 19... a5
{[%clk 0:01:32.8]} 20. g4 {[%clk 0:01:15.2]} 20... a4 {[%clk 0:01:13.8]} 21. Nc1
{[%clk 0:01:03.9]} 21... Rc5 {[%clk 0:01:10.3]} 22. gxh5 {[%clk 0:00:57.1]}
22... Nxh5 {[%clk 0:01:08]} 23. Rhg1 {[%clk 0:00:34.8]} 23... Nf4 {[%clk
0:00:56.1]} 24. Qe4 {[%clk 0:00:29.5]} 24... f5 {[%clk 0:00:53]} 25. Qe1 {[%clk
0:00:25]} 25... Bf6 {[%clk 0:00:44.1]} 26. Bxf5 {[%clk 0:00:21.1]} 26... d5
{[%clk 0:00:40.7]} 27. Nd3 {[%clk 0:00:15.9]} 27... Nxd3 {[%clk 0:00:38.5]} 28.
Bxd3 {[%clk 0:00:16.8]} 28... b4 {[%clk 0:00:38.5]} 29. Qg3 {[%clk 0:00:16.2]}
29... b3 {[%clk 0:00:28.3]} 30. Qh3 {[%clk 0:00:14.7]} 30... e4 {[%clk
0:00:17.4]} 31. fxe4 {[%clk 0:00:13.3]} 31... bxc2+ {[%clk 0:00:16.4]} 32. Kc1
{[%clk 0:00:09.3]} 32... Qxb2+ {[%clk 0:00:16.2]} 33. Kd2 {[%clk 0:00:08.7]}
33... cxd1=Q+ {[%clk 0:00:16.3]} 34. Kxd1 {[%clk 0:00:06]} 34... Rc1# {[%clk
0:00:15.4]} 0-1

[Event "*** SCC Grand Prix: Titled Tuesday Blitz"]
[Site "Chess.com"]
[Date "2020.07.14"]
[Round "5"]
[White "Maghalashvili"]
[Black "Canonkasparov"]
[Result "0-1"]
[WhiteElo "2756"]
[BlackElo "2571"]
[TimeControl "180+1"]
[EndTime "10:56:35 PDT"]
[Termination "Canonkasparov won on time"]

1. Nf3 {[%clk 0:02:58.9]} 1... d5 {[%clk 0:02:59.4]} 2. g3 {[%clk 0:02:55.4]}
2... Nf6 {[%clk 0:02:59.4]} 3. Bg2 {[%clk 0:02:55.3]} 3... c6 {[%clk 0:03:00.1]}
4. O-O {[%clk 0:02:55.1]} 4... Bg4 {[%clk 0:03:00.6]} 5. d3 {[%clk 0:02:52]}
5... Nbd7 {[%clk 0:03:00]} 6. Nbd2 {[%clk 0:02:52.2]} 6... e6 {[%clk 0:02:59.1]}
7. h3 {[%clk 0:02:50.1]} 7... Bh5 {[%clk 0:02:58.2]} 8. e4 {[%clk 0:02:49.3]}
8... Bc5 {[%clk 0:02:57.1]} 9. Qe1 {[%clk 0:02:47.6]} 9... O-O {[%clk
0:02:55.2]} 10. d4 {[%clk 0:02:35.7]} 10... Be7 {[%clk 0:02:53.7]} 11. c3 {[%clk
0:02:12.7]} 11... Bg6 {[%clk 0:02:50.7]} 12. e5 {[%clk 0:02:10.6]} 12... Ne4
{[%clk 0:02:40.8]} 13. Qe3 {[%clk 0:02:03.9]} 13... c5 {[%clk 0:02:36.7]} 14.
Nb3 {[%clk 0:01:51.4]} 14... b6 {[%clk 0:02:26.5]} 15. Nh2 {[%clk 0:01:40.9]}
15... Rc8 {[%clk 0:02:15.6]} 16. f4 {[%clk 0:01:38.3]} 16... cxd4 {[%clk
0:02:04.1]} 17. Nxd4 {[%clk 0:01:37.8]} 17... Bc5 {[%clk 0:01:55.6]} 18. g4
{[%clk 0:01:18]} 18... Bxd4 {[%clk 0:01:49.3]} 19. cxd4 {[%clk 0:01:13.2]} 19...
f5 {[%clk 0:01:47.2]} 20. Bd2 {[%clk 0:01:09.6]} 20... Nxd2 {[%clk 0:01:25.9]}
21. Qxd2 {[%clk 0:01:08.7]} 21... fxg4 {[%clk 0:01:25.6]} 22. hxg4 {[%clk
0:01:06.8]} 22... Rc2 {[%clk 0:01:25.7]} 23. Qe3 {[%clk 0:00:59.8]} 23... Rxb2
{[%clk 0:01:24.2]} 24. f5 {[%clk 0:00:57.4]} 24... exf5 {[%clk 0:01:13.4]} 25.
Bxd5+ {[%clk 0:00:57.3]} 25... Kh8 {[%clk 0:01:13.7]} 26. Qc3 {[%clk 0:00:56.1]}
26... Rxh2 {[%clk 0:01:07.1]} 27. Kxh2 {[%clk 0:00:55.3]} 27... Nxe5 {[%clk
0:01:05.1]} 28. dxe5 {[%clk 0:00:54.2]} 28... Qxd5 {[%clk 0:01:05.2]} 29. Rad1
{[%clk 0:00:53.4]} 29... Qxa2+ {[%clk 0:01:01.4]} 30. Rd2 {[%clk 0:00:51.8]}
30... Qa4 {[%clk 0:00:58.2]} 31. Qd4 {[%clk 0:00:47.7]} 31... Qb5 {[%clk
0:00:49.5]} 32. Qd6 {[%clk 0:00:44.1]} 32... Re8 {[%clk 0:00:42]} 33. Re1 {[%clk
0:00:40.7]} 33... fxg4 {[%clk 0:00:39.6]} 34. Rf2 {[%clk 0:00:36.7]} 34... h5
{[%clk 0:00:34.2]} 35. e6 {[%clk 0:00:32.7]} 35... Qg5 {[%clk 0:00:29.3]} 36.
Qf4 {[%clk 0:00:22.4]} 36... Qh4+ {[%clk 0:00:27.7]} 37. Kg1 {[%clk 0:00:22.4]}
37... Rc8 {[%clk 0:00:23.5]} 38. e7 {[%clk 0:00:20.4]} 38... Kh7 {[%clk
0:00:20.1]} 39. Rh2 {[%clk 0:00:20.5]} 39... Qxe1+ {[%clk 0:00:18.1]} 40. Kg2
{[%clk 0:00:19.2]} 40... Rc2+ {[%clk 0:00:17.9]} 0-1